Workbook

Sheet gminy
A1: PLANOWANA DLA GMIN NA 2024 R. KWOTA SUBWENCJI OGÓLNEJ, WPŁAT, DOCHODÓW Z PIT I CIT
L3: w złotych
F4: Subwencja ogólna na 2024 r. | J4: Wpłaty na część równoważącą | K4: Planowane udziały w podatku PIT | L4: Planowane udziały w podatki CIT
A5: Kod gminy | D5: Typ i nazwa gminy | G5: z tego:
G6: Część oświatowa | H6: Część wyrównawcza | I6: Część równoważąca
A9: WK | B9: PK | C9: GK | D9: GT | E9: GNAZWA | F9: razem | G9: SUB_OSW | H9: WYRÓWNAWCZA pomn o 150%G | I9: SUMA_ROW | J9: WPLATA_G | K9: P_UDZIAL18 | L9: P_UDZIAL18
A10: 02 | B10: 01 | C10: 01 | D10: 1 | E10: BOLESŁAWIEC | F10: =G10+H10+I10 -> 39742055 | G10: 39742055 | H10: 0 | I10: 0 | J10: 0 | K10: 52174073 | L10: 12445144
A11: 02 | B11: 01 | C11: 02 | D11: 2 | E11: BOLESŁAWIEC | F11: =G11+H11+I11 -> 19629571 | G11: 15561781 | H11: 4067790 | I11: 0 | J11: 0 | K11: 19385198 | L11: 336046
A12: 02 | B12: 01 | C12: 03 | D12: 2 | E12: GROMADKA | F12: 5442100 | G12: 5442100 | H12: 0 | I12: 0 | J12: 14924 | K12: 4473495 | L12: 661693
A13: 02 | B13: 01 | C13: 04 | D13: 3 | E13: NOWOGRODZIEC | F13: 23012283 | G13: 19662009 | H13: 2268926 | I13: 1081348 | J13: 0 | K13: 10386632 | L13: 861593
A14: 02 | B14: 01 | C14: 05 | D14: 2 | E14: OSIECZNICA | F14: 12719038 | G14: 9675179 | H14: 2984380 | I14: 59479 | J14: 0 | K14: 7158433 | L14: 496873
A15: 02 | B15: 01 | C15: 06 | D15: 2 | E15: WARTA BOLESŁAWIECKA | F15: 15886823 | G15: 12532888 | H15: 3346789 | I15: 7146 | J15: 0 | K15: 7533089 | L15: 67931
A16: 02 | B16: 02 | C16: 01 | D16: 1 | E16: BIELAWA | F16: 52265529 | G16: 30166129 | H16: 21973836 | I16: 125564 | J16: 0 | K16: 28212719 | L16: 1813715
A17: 02 | B17: 02 | C17: 02 | D17: 1 | E17: DZIERŻONIÓW | F17: =G17+H17+I17 -> 36907030 | G17: 31428168 | H17: 5082213 | I17: 396649 | J17: 0 | K17: 36925272 | L17: 4549790
A18: 02 | B18: 02 | C18: 03 | D18: 3 | E18: PIESZYCE | F18: =G18+H18+I18 -> 13216429 | G18: 8399764 | H18: 4640138 | I18: 176527 | J18: 0 | K18: 9664488 | L18: 628049
A19: 02 | B19: 02 | C19: 04 | D19: 1 | E19: PIŁAWA GÓRNA | F19: 9317411 | G19: 4603113 | H19: 4714298 | I19: 0 | J19: 0 | K19: 4192372 | L19: 729649
A20: 02 | B20: 02 | C20: 05 | D20: 2 | E20: DZIERŻONIÓW | F20: 15096472 | G20: 9500330 | H20: 5596142 | I20: 0 | J20: 0 | K20: 8966182 | L20: 100569
A21: 02 | B21: 02 | C21: 06 | D21: 2 | E21: ŁAGIEWNIKI | F21: 15719916 | G21: 9287271 | H21: 6432645 | I21: 0 | J21: 0 | K21: 6278826 | L21: 181320
A22: 02 | B22: 02 | C22: 07 | D22: 3 | E22: NIEMCZA | F22: 7796682 | G22: 5329062 | H22: 2427140 | I22: 40480 | J22: 0 | K22: 5601401 | L22: 105363
A23: 02 | B23: 03 | C23: 01 | D23: 1 | E23: GŁOGÓW | F23: 62610343 | G23: 62265099 | H23: 0 | I23: 345244 | J23: 0 | K23: 109113820 | L23: 14078971
A24: 02 | B24: 03 | C24: 02 | D24: 2 | E24: GŁOGÓW | F24: 8035215 | G24: 7004859 | H24: 1030356 | I24: 0 | J24: 0 | K24: 13020605 | L24: 316876
A25: 02 | B25: 03 | C25: 03 | D25: 2 | E25: JERZMANOWA | F25: 6433729 | G25: 6433729 | H25: 0 | I25: 0 | J25: 5773915 | K25: 13968829 | L25: 39192
A26: 02 | B26: 03 | C26: 04 | D26: 2 | E26: KOTLA | F26: 7963367 | G26: 4920731 | H26: 3042636 | I26: 0 | J26: 0 | K26: 4651645 | L26: 374915
A27: 02 | B27: 03 | C27: 05 | D27: 2 | E27: PĘCŁAW | F27: 4350814 | G27: 2265622 | H27: 2085192 | I27: 0 | J27: 0 | K27: 1746258 | L27: 17372
A28: 02 | B28: 03 | C28: 06 | D28: 2 | E28: ŻUKOWICE | F28: 5044418 | G28: 4093619 | H28: 950799 | I28: 0 | J28: 0 | K28: 2970459 | L28: 33579
A29: 02 | B29: 04 | C29: 01 | D29: 3 | E29: GÓRA | F29: 32114179 | G29: 18251450 | H29: 13119500 | I29: 743229 | J29: 0 | K29: 15492591 | L29: 1577202
A30: 02 | B30: 04 | C30: 02 | D30: 2 | E30: JEMIELNO | F30: 7617187 | G30: 3806365 | H30: 3810629 | I30: 193 | J30: 0 | K30: 1389956 | L30: 21668
A31: 02 | B31: 04 | C31: 03 | D31: 2 | E31: NIECHLÓW | F31: 10807352 | G31: 5918239 | H31: 4872810 | I31: 16303 | J31: 0 | K31: 2748845 | L31: 136639
A32: 02 | B32: 04 | C32: 04 | D32: 3 | E32: WĄSOSZ | F32: 11093236 | G32: 7132373 | H32: 3790867 | I32: 169996 | J32: 0 | K32: 5585198 | L32: 198656
A33: 02 | B33: 05 | C33: 01 | D33: 1 | E33: JAWOR | F33: 18368123 | G33: 18368123 | H33: 0 | I33: 0 | J33: 0 | K33: 24961349 | L33: 8044422
A34: 02 | B34: 05 | C34: 02 | D34: 3 | E34: BOLKÓW | F34: 21120121 | G34: 10197041 | H34: 10633922 | I34: 289158 | J34: 0 | K34: 7225566 | L34: 160854
A35: 02 | B35: 05 | C35: 03 | D35: 2 | E35: MĘCINKA | F35: 6728138 | G35: 4805492 | H35: 1922646 | I35: 0 | J35: 0 | K35: 4707615 | L35: 171955
A36: 02 | B36: 05 | C36: 04 | D36: 2 | E36: MŚCIWOJÓW | F36: 6638393 | G36: 4437723 | H36: 2200670 | I36: 0 | J36: 0 | K36: 3168116 | L36: 82971
A37: 02 | B37: 05 | C37: 05 | D37: 2 | E37: PASZOWICE | F37: 8380581 | G37: 4909092 | H37: 3471489 | I37: 0 | J37: 0 | K37: 3718599 | L37: 66964
A38: 02 | B38: 05 | C38: 06 | D38: 2 | E38: WĄDROŻE WIELKIE | F38: 7735159 | G38: 4887982 | H38: 2847177 | I38: 0 | J38: 0 | K38: 3561994 | L38: 38346
A39: 02 | B39: 06 | C39: 01 | D39: 1 | E39: KARPACZ | F39: 5375528 | G39: 5375528 | H39: 0 | I39: 0 | J39: 1631804 | K39: 7642916 | L39: 573410
A40: 02 | B40: 06 | C40: 02 | D40: 1 | E40: KOWARY | F40: 12476525 | G40: 8668553 | H40: 3606837 | I40: 201135 | J40: 0 | K40: 10296633 | L40: 620810
A41: 02 | B41: 06 | C41: 03 | D41: 1 | E41: PIECHOWICE | F41: 3800651 | G41: 3800651 | H41: 0 | I41: 0 | J41: 0 | K41: 6814501 | L41: 167889
A42: 02 | B42: 06 | C42: 04 | D42: 1 | E42: SZKLARSKA PORĘBA | F42: 4425570 | G42: 4425570 | H42: 0 | I42: 0 | J42: 146753 | K42: 7033758 | L42: 368552
A43: 02 | B43: 06 | C43: 05 | D43: 2 | E43: JANOWICE WIELKIE | F43: 7436005 | G43: 4231988 | H43: 3193812 | I43: 10205 | J43: 0 | K43: 4051792 | L43: 152780
A44: 02 | B44: 06 | C44: 06 | D44: 2 | E44: JEŻÓW SUDECKI | F44: 9292210 | G44: 6848004 | H44: 2444206 | I44: 0 | J44: 0 | K44: 12938463 | L44: 78265
A45: 02 | B45: 06 | C45: 07 | D45: 2 | E45: MYSŁAKOWICE | F45: 14253239 | G45: 11054752 | H45: 3198487 | I45: 0 | J45: 0 | K45: 11060612 | L45: 275910
A46: 02 | B46: 06 | C46: 08 | D46: 2 | E46: PODGÓRZYN | F46: 12732759 | G46: 12028988 | H46: 703771 | I46: 0 | J46: 0 | K46: 10196235 | L46: 341236
A47: 02 | B47: 06 | C47: 09 | D47: 2 | E47: STARA KAMIENICA | F47: 8966428 | G47: 7450747 | H47: 1515681 | I47: 0 | J47: 0 | K47: 4220636 | L47: 106868
A48: 02 | B48: 07 | C48: 01 | D48: 1 | E48: KAMIENNA GÓRA | F48: 26964772 | G48: 15693569 | H48: 11171812 | I48: 99391 | J48: 0 | K48: 16892548 | L48: 1401828
A49: 02 | B49: 07 | C49: 02 | D49: 2 | E49: KAMIENNA GÓRA | F49: 18564677 | G49: 11588266 | H49: 6976411 | I49: 0 | J49: 0 | K49: 9141909 | L49: 638915
A50: 02 | B50: 07 | C50: 03 | D50: 3 | E50: LUBAWKA | F50: 19543530 | G50: 9400081 | H50: 9826160 | I50: 317289 | J50: 0 | K50: 8824051 | L50: 610929
A51: 02 | B51: 07 | C51: 04 | D51: 2 | E51: MARCISZÓW | F51: 10288002 | G51: 3856038 | H51: 6431964 | I51: 0 | J51: 0 | K51: 2856543 | L51: 35206
A52: 02 | B52: 08 | C52: 01 | D52: 1 | E52: DUSZNIKI-ZDRÓJ | F52: 6032890 | G52: 5967286 | H52: 0 | I52: 65604 | J52: 0 | K52: 4920088 | L52: 377604
A53: 02 | B53: 08 | C53: 02 | D53: 1 | E53: KŁODZKO | F53: 34133174 | G53: 25285834 | H53: 8762709 | I53: 84631 | J53: 0 | K53: 29296128 | L53: 2095783
A54: 02 | B54: 08 | C54: 03 | D54: 1 | E54: KUDOWA-ZDRÓJ | F54: 17478305 | G54: 12315010 | H54: 5135213 | I54: 28082 | J54: 0 | K54: 8281132 | L54: 493391
A55: 02 | B55: 08 | C55: 04 | D55: 1 | E55: NOWA RUDA | F55: 25644592 | G55: 12884739 | H55: 12632294 | I55: 127559 | J55: 0 | K55: 21223261 | L55: 1590589
A56: 02 | B56: 08 | C56: 05 | D56: 1 | E56: POLANICA-ZDRÓJ | F56: 4987429 | G56: 4946672 | H56: 0 | I56: 40757 | J56: 0 | K56: 7541705 | L56: 200897
A57: 02 | B57: 08 | C57: 06 | D57: 3 | E57: BYSTRZYCA KŁODZKA | F57: 41194418 | G57: 24261269 | H57: 15074126 | I57: 1859023 | J57: 0 | K57: 14873477 | L57: 1224808
A58: 02 | B58: 08 | C58: 07 | D58: 2 | E58: KŁODZKO | F58: 32789754 | G58: 20622530 | H58: 11978564 | I58: 188660 | J58: 0 | K58: 15973208 | L58: 359992
A59: 02 | B59: 08 | C59: 08 | D59: 3 | E59: LĄDEK-ZDRÓJ | F59: 12044154 | G59: 5808651 | H59: 6111303 | I59: 124200 | J59: 0 | K59: 6715656 | L59: 198164
A60: 02 | B60: 08 | C60: 09 | D60: 2 | E60: LEWIN KŁODZKI | F60: 4782137 | G60: 2347421 | H60: 2424387 | I60: 10329 | J60: 0 | K60: 1077908 | L60: 5304
A61: 02 | B61: 08 | C61: 10 | D61: 3 | E61: MIĘDZYLESIE | F61: 15470321 | G61: 7017270 | H61: 8453051 | I61: 0 | J61: 0 | K61: 5073432 | L61: 87050
A62: 02 | B62: 08 | C62: 11 | D62: 2 | E62: NOWA RUDA | F62: 26715424 | G62: 16179306 | H62: 10470631 | I62: 65487 | J62: 0 | K62: 9167454 | L62: 322010
A63: 02 | B63: 08 | C63: 12 | D63: 3 | E63: RADKÓW | F63: 14756495 | G63: 9753151 | H63: 4691902 | I63: 311442 | J63: 0 | K63: 6964274 | L63: 749408
A64: 02 | B64: 08 | C64: 13 | D64: 3 | E64: STRONIE ŚLĄSKIE | F64: 10252581 | G64: 5594451 | H64: 4629341 | I64: 28789 | J64: 0 | K64: 5338881 | L64: 254637
A65: 02 | B65: 08 | C65: 14 | D65: 3 | E65: SZCZYTNA | F65: 14403746 | G65: 6370338 | H65: 8033408 | I65: 0 | J65: 0 | K65: 5676301 | L65: 71100
A66: 02 | B66: 09 | C66: 01 | D66: 1 | E66: CHOJNÓW | F66: 17382946 | G66: 11892434 | H66: 5418965 | I66: 71547 | J66: 0 | K66: 14163600 | L66: 1246387
A67: 02 | B67: 09 | C67: 02 | D67: 2 | E67: CHOJNÓW | F67: 13532711 | G67: 9656284 | H67: 3876427 | I67: 0 | J67: 0 | K67: 9987953 | L67: 413903
A68: 02 | B68: 09 | C68: 03 | D68: 2 | E68: KROTOSZYCE | F68: 4419667 | G68: 3357414 | H68: 1062253 | I68: 0 | J68: 0 | K68: 3619424 | L68: 192627
A69: 02 | B69: 09 | C69: 04 | D69: 2 | E69: KUNICE | F69: 10643344 | G69: 9491972 | H69: 1151372 | I69: 0 | J69: 0 | K69: 14054810 | L69: 1619010
A70: 02 | B70: 09 | C70: 05 | D70: 2 | E70: LEGNICKIE POLE | F70: 4775686 | G70: 4775686 | H70: 0 | I70: 0 | J70: 1579724 | K70: 8209409 | L70: 1208715
A71: 02 | B71: 09 | C71: 06 | D71: 2 | E71: MIŁKOWICE | F71: 9713193 | G71: 7610437 | H71: 2102756 | I71: 0 | J71: 0 | K71: 8893997 | L71: 588442
A72: 02 | B72: 09 | C72: 07 | D72: 3 | E72: PROCHOWICE | F72: 9966239 | G72: 8460502 | H72: 1489627 | I72: 16110 | J72: 0 | K72: 7137949 | L72: 813192
A73: 02 | B73: 09 | C73: 08 | D73: 2 | E73: RUJA | F73: 4051783 | G73: 2144083 | H73: 1907700 | I73: 0 | J73: 0 | K73: 1819584 | L73: 1862
A74: 02 | B74: 10 | C74: 01 | D74: 1 | E74: LUBAŃ | F74: 23715436 | G74: 17567724 | H74: 6147712 | I74: 0 | J74: 0 | K74: 24172423 | L74: 1162828
A75: 02 | B75: 10 | C75: 02 | D75: 1 | E75: ŚWIERADÓW-ZDRÓJ | F75: =G75+H75+I75 -> 6376685 | G75: 6326275 | H75: 0 | I75: 50410 | J75: 0 | K75: 4083864 | L75: 263304
A76: 02 | B76: 10 | C76: 03 | D76: 3 | E76: LEŚNA | F76: 21213826 | G76: 9980625 | H76: 10647449 | I76: 585752 | J76: 0 | K76: 5964166 | L76: 121428
A77: 02 | B77: 10 | C77: 04 | D77: 2 | E77: LUBAŃ | F77: 12718413 | G77: 7870335 | H77: 4848078 | I77: 0 | J77: 0 | K77: 6600926 | L77: 79219
A78: 02 | B78: 10 | C78: 05 | D78: 3 | E78: OLSZYNA | F78: 10797789 | G78: 7355449 | H78: 3417574 | I78: 24766 | J78: 0 | K78: 6028557 | L78: 120001
A79: 02 | B79: 10 | C79: 06 | D79: 2 | E79: PLATERÓWKA | F79: 2123535 | G79: 1594265 | H79: 529270 | I79: 0 | J79: 0 | K79: 1261797 | L79: 9517
A80: 02 | B80: 10 | C80: 07 | D80: 2 | E80: SIEKIERCZYN | F80: 8765330 | G80: 4819122 | H80: 3946208 | I80: 0 | J80: 0 | K80: 4157558 | L80: 53451
A81: 02 | B81: 11 | C81: 01 | D81: 1 | E81: LUBIN | F81: 76987499 | G81: 76987499 | H81: 0 | I81: 0 | J81: 6457621 | K81: 143891589 | L81: 107583851
A82: 02 | B82: 11 | C82: 02 | D82: 2 | E82: LUBIN | F82: 12737237 | G82: 12737237 | H82: 0 | I82: 0 | J82: 2039222 | K82: 45597548 | L82: 686962
A83: 02 | B83: 11 | C83: 03 | D83: 2 | E83: RUDNA | F83: 9532188 | G83: 9532188 | H83: 0 | I83: 0 | J83: 5033600 | K83: 11935319 | L83: 1679061
A84: 02 | B84: 11 | C84: 04 | D84: 3 | E84: ŚCINAWA | F84: 14161540 | G84: 7723698 | H84: 6381774 | I84: 56068 | J84: 0 | K84: 11016033 | L84: 402823
A85: 02 | B85: 12 | C85: 01 | D85: 3 | E85: GRYFÓW ŚLĄSKI | F85: 12837118 | G85: 6799303 | H85: 5929616 | I85: 108199 | J85: 0 | K85: 9161334 | L85: 293788
A86: 02 | B86: 12 | C86: 02 | D86: 3 | E86: LUBOMIERZ | F86: 17750254 | G86: 9787735 | H86: 7962519 | I86: 0 | J86: 0 | K86: 3246918 | L86: 21862
A87: 02 | B87: 12 | C87: 03 | D87: 3 | E87: LWÓWEK ŚLĄSKI | F87: 24607859 | G87: 15078820 | H87: 9529039 | I87: 0 | J87: 0 | K87: 15956754 | L87: 1437611
A88: 02 | B88: 12 | C88: 04 | D88: 3 | E88: MIRSK | F88: 17179381 | G88: 7230145 | H88: 9619770 | I88: 329466 | J88: 0 | K88: 5675653 | L88: 176457
A89: 02 | B89: 12 | C89: 05 | D89: 3 | E89: WLEŃ | F89: 8328013 | G89: 3373504 | H89: 4925739 | I89: 28770 | J89: 0 | K89: 2540640 | L89: 24495
A90: 02 | B90: 13 | C90: 01 | D90: 2 | E90: CIESZKÓW | F90: 10205747 | G90: 5357191 | H90: 4848005 | I90: 551 | J90: 0 | K90: 3821277 | L90: 41872
A91: 02 | B91: 13 | C91: 02 | D91: 2 | E91: KROŚNICE | F91: 10803387 | G91: 8416534 | H91: 2386853 | I91: 0 | J91: 0 | K91: 7292586 | L91: 271141
A92: 02 | B92: 13 | C92: 03 | D92: 3 | E92: MILICZ | F92: 45000190 | G92: 33989010 | H92: 11011180 | I92: 0 | J92: 0 | K92: 27060646 | L92: 1377959
A93: 02 | B93: 14 | C93: 01 | D93: 1 | E93: OLEŚNICA | F93: 42274137 | G93: 38278145 | H93: 3924947 | I93: 71045 | J93: 0 | K93: 52226123 | L93: 6173405
A94: 02 | B94: 14 | C94: 02 | D94: 3 | E94: BIERUTÓW | F94: 19815805 | G94: 10863387 | H94: 8892079 | I94: 60339 | J94: 0 | K94: 8171439 | L94: 423490
A95: 02 | B95: 14 | C95: 03 | D95: 2 | E95: DOBROSZYCE | F95: 12194393 | G95: 10321882 | H95: 1872511 | I95: 0 | J95: 0 | K95: 8780519 | L95: 241244
A96: 02 | B96: 14 | C96: 04 | D96: 2 | E96: DZIADOWA KŁODA | F96: 11580381 | G96: 6327062 | H96: 5253319 | I96: 0 | J96: 0 | K96: 3520368 | L96: 247866
A97: 02 | B97: 14 | C97: 05 | D97: 3 | E97: MIĘDZYBÓRZ | F97: 10753213 | G97: 7491283 | H97: 3261930 | I97: 0 | J97: 0 | K97: 4300064 | L97: 127493
A98: 02 | B98: 14 | C98: 06 | D98: 2 | E98: OLEŚNICA | F98: 18656726 | G98: 14500371 | H98: 4156355 | I98: 0 | J98: 0 | K98: 20881141 | L98: 443765
A99: 02 | B99: 14 | C99: 07 | D99: 3 | E99: SYCÓW | F99: 23710033 | G99: 18343141 | H99: 5186711 | I99: 180181 | J99: 0 | K99: 16958907 | L99: 1967114
A100: 02 | B100: 14 | C100: 08 | D100: 3 | E100: TWARDOGÓRA | F100: 14564033 | G100: 11888896 | H100: 2266318 | I100: 408819 | J100: 0 | K100: 19580677 | L100: 1261659
A101: 02 | B101: 15 | C101: 01 | D101: 1 | E101: OŁAWA | F101: 33785406 | G101: 33557645 | H101: 0 | I101: 227761 | J101: 0 | K101: 54644951 | L101: 4157097
A102: 02 | B102: 15 | C102: 02 | D102: 2 | E102: DOMANIÓW | F102: 13626963 | G102: 10212241 | H102: 3414722 | I102: 0 | J102: 0 | K102: 4436559 | L102: 83052
A103: 02 | B103: 15 | C103: 03 | D103: 3 | E103: JELCZ-LASKOWICE | F103: 28273337 | G103: 28158581 | H103: 0 | I103: 114756 | J103: 0 | K103: 36817289 | L103: 5305605
A104: 02 | B104: 15 | C104: 04 | D104: 2 | E104: OŁAWA | F104: 23971054 | G104: 20645699 | H104: 3325355 | I104: 0 | J104: 0 | K104: 27465229 | L104: 4288672
A105: 02 | B105: 16 | C105: 01 | D105: 3 | E105: CHOCIANÓW | F105: 16099652 | G105: 11244812 | H105: 4606956 | I105: 247884 | J105: 0 | K105: 18044121 | L105: 558852
A106: 02 | B106: 16 | C106: 02 | D106: 2 | E106: GAWORZYCE | F106: 7264491 | G106: 4187608 | H106: 3076883 | I106: 0 | J106: 0 | K106: 4061908 | L106: 103703
A107: 02 | B107: 16 | C107: 03 | D107: 2 | E107: GRĘBOCICE | F107: 5888058 | G107: 5888058 | H107: 0 | I107: 0 | J107: 3713053 | K107: 5775968 | L107: 82855
A108: 02 | B108: 16 | C108: 04 | D108: 3 | E108: POLKOWICE | F108: 30183905 | G108: 29743845 | H108: 0 | I108: 440060 | J108: 31317487 | K108: 53200598 | L108: 36357834
A109: 02 | B109: 16 | C109: 05 | D109: 3 | E109: PRZEMKÓW | F109: 16109208 | G109: 9230313 | H109: 6675446 | I109: 203449 | J109: 0 | K109: 8845559 | L109: 222343
A110: 02 | B110: 16 | C110: 06 | D110: 2 | E110: RADWANICE | F110: 8142956 | G110: 6938236 | H110: 1204720 | I110: 0 | J110: 0 | K110: 7598803 | L110: 50407
A111: 02 | B111: 17 | C111: 01 | D111: 2 | E111: BORÓW | F111: 9642910 | G111: 7167247 | H111: 2475663 | I111: 0 | J111: 0 | K111: 4742851 | L111: 136816
A112: 02 | B112: 17 | C112: 02 | D112: 2 | E112: KONDRATOWICE | F112: 7883140 | G112: 5116738 | H112: 2766402 | I112: 0 | J112: 0 | K112: 2870642 | L112: 467745
A113: 02 | B113: 17 | C113: 03 | D113: 2 | E113: PRZEWORNO | F113: 9262045 | G113: 3836435 | H113: 5425610 | I113: 0 | J113: 0 | K113: 3313480 | L113: 50662
A114: 02 | B114: 17 | C114: 04 | D114: 3 | E114: STRZELIN | F114: 27711417 | G114: 26899963 | H114: 0 | I114: 811454 | J114: 0 | K114: 27488487 | L114: 3882505
A115: 02 | B115: 17 | C115: 05 | D115: 3 | E115: WIĄZÓW | F115: 15767437 | G115: 9451022 | H115: 6316415 | I115: 0 | J115: 0 | K115: 5350366 | L115: 58473
A116: 02 | B116: 18 | C116: 01 | D116: 2 | E116: KOSTOMŁOTY | F116: 14820553 | G116: 9581710 | H116: 5238843 | I116: 0 | J116: 0 | K116: 6944823 | L116: 123441
A117: 02 | B117: 18 | C117: 02 | D117: 2 | E117: MALCZYCE | F117: 8765041 | G117: 6028033 | H117: 2737008 | I117: 0 | J117: 0 | K117: 5998618 | L117: 253418
A118: 02 | B118: 18 | C118: 03 | D118: 3 | E118: MIĘKINIA | F118: 31013179 | G118: 30695603 | H118: 317576 | I118: 0 | J118: 0 | K118: 40660309 | L118: 4483064
A119: 02 | B119: 18 | C119: 04 | D119: 3 | E119: ŚRODA ŚLĄSKA | F119: 24511671 | G119: 22281333 | H119: 2230338 | I119: 0 | J119: 0 | K119: 25919615 | L119: 8000065
A120: 02 | B120: 18 | C120: 05 | D120: 2 | E120: UDANIN | F120: 8963511 | G120: 5685845 | H120: 3277666 | I120: 0 | J120: 0 | K120: 3223493 | L120: 256724
A121: 02 | B121: 19 | C121: 01 | D121: 1 | E121: ŚWIDNICA | F121: 64008678 | G121: 64008678 | H121: 0 | I121: 0 | J121: 0 | K121: 81910196 | L121: 8598713
A122: 02 | B122: 19 | C122: 02 | D122: 1 | E122: ŚWIEBODZICE | F122: 29011850 | G122: 25870940 | H122: 3140910 | I122: 0 | J122: 0 | K122: 30900060 | L122: 3073426
A123: 02 | B123: 19 | C123: 03 | D123: 2 | E123: DOBROMIERZ | F123: 10805555 | G123: 7484608 | H123: 3292573 | I123: 28374 | J123: 0 | K123: 4100611 | L123: 38713
A124: 02 | B124: 19 | C124: 04 | D124: 3 | E124: JAWORZYNA ŚLĄSKA | F124: 17430769 | G124: 10739032 | H124: 6680697 | I124: 11040 | J124: 0 | K124: 9691904 | L124: 167941
A125: 02 | B125: 19 | C125: 05 | D125: 2 | E125: MARCINOWICE | F125: 11715337 | G125: 7704464 | H125: 4010873 | I125: 0 | J125: 0 | K125: 6322239 | L125: 50022
A126: 02 | B126: 19 | C126: 06 | D126: 3 | E126: STRZEGOM | F126: 26509948 | G126: 26508245 | H126: 0 | I126: 1703 | J126: 0 | K126: 28953308 | L126: 3264742
A127: 02 | B127: 19 | C127: 07 | D127: 2 | E127: ŚWIDNICA | F127: 28081308 | G127: 25061441 | H127: 3019867 | I127: 0 | J127: 0 | K127: 26354250 | L127: 330951
A128: 02 | B128: 19 | C128: 08 | D128: 3 | E128: ŻARÓW | F128: 13827414 | G128: 13808045 | H128: 0 | I128: 19369 | J128: 0 | K128: 13641888 | L128: 1474272
A129: 02 | B129: 20 | C129: 01 | D129: 3 | E129: OBORNIKI ŚLĄSKIE | F129: 22558859 | G129: 21770379 | H129: 788480 | I129: 0 | J129: 0 | K129: 34258827 | L129: 1727430
A130: 02 | B130: 20 | C130: 02 | D130: 3 | E130: PRUSICE | F130: 12733242 | G130: 10002196 | H130: 2731046 | I130: 0 | J130: 0 | K130: 8406556 | L130: 776395
A131: 02 | B131: 20 | C131: 03 | D131: 3 | E131: TRZEBNICA | F131: 31008004 | G131: 30787331 | H131: 0 | I131: 220673 | J131: 0 | K131: 42208956 | L131: 3780440
A132: 02 | B132: 20 | C132: 04 | D132: 2 | E132: WISZNIA MAŁA | F132: 15271852 | G132: 15010131 | H132: 261721 | I132: 0 | J132: 0 | K132: 22181752 | L132: 2013873
A133: 02 | B133: 20 | C133: 05 | D133: 2 | E133: ZAWONIA | F133: 8198438 | G133: 6569932 | H133: 1628506 | I133: 0 | J133: 0 | K133: 10329404 | L133: 144931
A134: 02 | B134: 20 | C134: 06 | D134: 3 | E134: ŻMIGRÓD | F134: 24784254 | G134: 14172186 | H134: 10374636 | I134: 237432 | J134: 0 | K134: 13944283 | L134: 491903
A135: 02 | B135: 21 | C135: 01 | D135: 1 | E135: BOGUSZÓW-GORCE | F135: 25405785 | G135: 10683414 | H135: 14618197 | I135: 104174 | J135: 0 | K135: 12663562 | L135: 226772
A136: 02 | B136: 21 | C136: 02 | D136: 1 | E136: JEDLINA-ZDRÓJ | F136: 7473930 | G136: 4666610 | H136: 2763543 | I136: 43777 | J136: 0 | K136: 4410900 | L136: 62204
A137: 02 | B137: 21 | C137: 03 | D137: 1 | E137: SZCZAWNO-ZDRÓJ | F137: 4364506 | G137: 4364506 | H137: 0 | I137: 0 | J137: 0 | K137: 10486170 | L137: 1167110
A138: 02 | B138: 21 | C138: 04 | D138: 2 | E138: CZARNY BÓR | F138: 8358882 | G138: 6838144 | H138: 1511194 | I138: 9544 | J138: 0 | K138: 5391011 | L138: 550858
A139: 02 | B139: 21 | C139: 05 | D139: 3 | E139: GŁUSZYCA | F139: =G139+H139+I139 -> 13483647 | G139: 5381668 | H139: 8035614 | I139: 66365 | J139: 0 | K139: 6761076 | L139: 142368
A140: 02 | B140: 21 | C140: 06 | D140: 3 | E140: MIEROSZÓW | F140: 11393893 | G140: 7441506 | H140: 3883900 | I140: 68487 | J140: 0 | K140: 5464726 | L140: 241192
A141: 02 | B141: 21 | C141: 07 | D141: 2 | E141: STARE BOGACZOWICE | F141: 6921279 | G141: 3880033 | H141: 3041246 | I141: 0 | J141: 0 | K141: 5188304 | L141: 108091
A142: 02 | B142: 21 | C142: 08 | D142: 2 | E142: WALIM | F142: 8754087 | G142: 5760169 | H142: 2931955 | I142: 61963 | J142: 0 | K142: 5838498 | L142: 74012
A143: 02 | B143: 22 | C143: 01 | D143: 3 | E143: BRZEG DOLNY | F143: 16243858 | G143: 16224095 | H143: 0 | I143: 19763 | J143: 0 | K143: 22748810 | L143: 3379738
A144: 02 | B144: 22 | C144: 02 | D144: 2 | E144: WIŃSKO | F144: 18409584 | G144: 8753926 | H144: 9635396 | I144: 20262 | J144: 0 | K144: 6537041 | L144: 101039
A145: 02 | B145: 22 | C145: 03 | D145: 3 | E145: WOŁÓW | F145: 35730842 | G145: 22721983 | H145: 12947132 | I145: 61727 | J145: 0 | K145: 24701487 | L145: 672865
A146: 02 | B146: 23 | C146: 01 | D146: 2 | E146: CZERNICA | F146: 35556603 | G146: 35556603 | H146: 0 | I146: 0 | J146: 0 | K146: 49168669 | L146: 572010
A147: 02 | B147: 23 | C147: 02 | D147: 2 | E147: DŁUGOŁĘKA | F147: 70850150 | G147: 70850150 | H147: 0 | I147: 0 | J147: 0 | K147: 97466251 | L147: 6658647
A148: 02 | B148: 23 | C148: 03 | D148: 2 | E148: JORDANÓW ŚLĄSKI | F148: 6679039 | G148: 4822319 | H148: 1856720 | I148: 0 | J148: 0 | K148: 3487233 | L148: 162218
A149: 02 | B149: 23 | C149: 04 | D149: 3 | E149: KĄTY WROCŁAWSKIE | F149: 39327461 | G149: 39327461 | H149: 0 | I149: 0 | J149: 2884847 | K149: 63043302 | L149: 12122765
A150: 02 | B150: 23 | C150: 05 | D150: 2 | E150: KOBIERZYCE | F150: 41568455 | G150: 41568455 | H150: 0 | I150: 0 | J150: 42986599 | K150: 95541579 | L150: 40858140
A151: 02 | B151: 23 | C151: 06 | D151: 2 | E151: MIETKÓW | F151: 5627027 | G151: 4196693 | H151: 1430334 | I151: 0 | J151: 0 | K151: 3758826 | L151: 55701
A152: 02 | B152: 23 | C152: 07 | D152: 3 | E152: SOBÓTKA | F152: 20800098 | G152: 19419974 | H152: 1302008 | I152: 78116 | J152: 0 | K152: 16703277 | L152: 1356175
A153: 02 | B153: 23 | C153: 08 | D153: 3 | E153: SIECHNICE | F153: 45636260 | G153: 45636260 | H153: 0 | I153: 0 | J153: 964921 | K153: 67908697 | L153: 5531814
A154: 02 | B154: 23 | C154: 09 | D154: 2 | E154: ŻÓRAWINA | F154: 19054731 | G154: 18572234 | H154: 482497 | I154: 0 | J154: 0 | K154: 27302187 | L154: 2017593
A155: 02 | B155: 24 | C155: 01 | D155: 3 | E155: BARDO | F155: 5594977 | G155: 4561083 | H155: 1028567 | I155: 5327 | J155: 0 | K155: 5012459 | L155: 2860431
A156: 02 | B156: 24 | C156: 02 | D156: 2 | E156: CIEPŁOWODY | F156: 5851574 | G156: 2738511 | H156: 3113063 | I156: 0 | J156: 0 | K156: 2232073 | L156: 118599
A157: 02 | B157: 24 | C157: 03 | D157: 3 | E157: KAMIENIEC ZĄBKOWICKI | F157: 9324463 | G157: 6384219 | H157: 2940244 | I157: 0 | J157: 0 | K157: 8868424 | L157: 133961
A158: 02 | B158: 24 | C158: 04 | D158: 2 | E158: STOSZOWICE | F158: 9628140 | G158: 4941602 | H158: 4686538 | I158: 0 | J158: 0 | K158: 4817101 | L158: 46152
A159: 02 | B159: 24 | C159: 05 | D159: 3 | E159: ZĄBKOWICE ŚLĄSKIE | F159: 24165928 | G159: 21574857 | H159: 2427506 | I159: 163565 | J159: 0 | K159: 25672105 | L159: 2521860
A160: 02 | B160: 24 | C160: 06 | D160: 3 | E160: ZIĘBICE | F160: 29379502 | G160: 14155603 | H160: 14948772 | I160: 275127 | J160: 0 | K160: 12618582 | L160: 463463
A161: 02 | B161: 24 | C161: 07 | D161: 3 | E161: ZŁOTY STOK | F161: 7861497 | G161: 4068900 | H161: 3754373 | I161: 38224 | J161: 0 | K161: 4087975 | L161: 46112
A162: 02 | B162: 25 | C162: 01 | D162: 1 | E162: ZAWIDÓW | F162: 5774063 | G162: 3819555 | H162: 1954508 | I162: 0 | J162: 0 | K162: 4917980 | L162: 107479
A163: 02 | B163: 25 | C163: 02 | D163: 1 | E163: ZGORZELEC | F163: 32320773 | G163: 28901118 | H163: 3419655 | I163: 0 | J163: 0 | K163: 42940227 | L163: 3926933
A164: 02 | B164: 25 | C164: 03 | D164: 3 | E164: BOGATYNIA | F164: 21832307 | G164: 21723444 | H164: 0 | I164: 108863 | J164: 12197867 | K164: 30147939 | L164: 13589567
A165: 02 | B165: 25 | C165: 04 | D165: 3 | E165: PIEŃSK | F165: 14672509 | G165: 6483098 | H165: 8152215 | I165: 37196 | J165: 0 | K165: 6361598 | L165: 74580
A166: 02 | B166: 25 | C166: 05 | D166: 2 | E166: SULIKÓW | F166: 7252297 | G166: 5742685 | H166: 1509612 | I166: 0 | J166: 0 | K166: 5178779 | L166: 577983
A167: 02 | B167: 25 | C167: 06 | D167: 3 | E167: WĘGLINIEC | F167: 17007371 | G167: 9171533 | H167: 7810710 | I167: 25128 | J167: 0 | K167: 6213455 | L167: 454804
A168: 02 | B168: 25 | C168: 07 | D168: 2 | E168: ZGORZELEC | F168: 10033709 | G168: 8078620 | H168: 1955089 | I168: 0 | J168: 0 | K168: 9089221 | L168: 248274
A169: 02 | B169: 26 | C169: 01 | D169: 1 | E169: WOJCIESZÓW | F169: 7128236 | G169: 4196983 | H169: 2931253 | I169: 0 | J169: 0 | K169: 2573771 | L169: 184918
A170: 02 | B170: 26 | C170: 02 | D170: 1 | E170: ZŁOTORYJA | F170: 15495821 | G170: 12019362 | H170: 3292372 | I170: 184087 | J170: 0 | K170: 19808167 | L170: 924307
A171: 02 | B171: 26 | C171: 03 | D171: 2 | E171: PIELGRZYMKA | F171: 8599938 | G171: 4797774 | H171: 3802164 | I171: 0 | J171: 0 | K171: 4230093 | L171: 71480
A172: 02 | B172: 26 | C172: 04 | D172: 3 | E172: ŚWIERZAWA | F172: 15729573 | G172: 8686006 | H172: 7029300 | I172: 14267 | J172: 0 | K172: 4483831 | L172: 191667
A173: 02 | B173: 26 | C173: 05 | D173: 2 | E173: ZAGRODNO | F173: 5460483 | G173: 3910984 | H173: 1549499 | I173: 0 | J173: 0 | K173: 3835055 | L173: 71187
A174: 02 | B174: 26 | C174: 06 | D174: 2 | E174: ZŁOTORYJA | F174: 11303501 | G174: 7695040 | H174: 3533916 | I174: 74545 | J174: 0 | K174: 6810331 | L174: 323065
A175: 02 | B175: 61 | C175: 01 | D175: 1 | E175: Jelenia Góra | F175: 81140300 | G175: 76313708 | H175: 4826592 | I175: 0 | J175: 0 | K175: 99836024 | L175: 12153020
A176: 02 | B176: 62 | C176: 01 | D176: 1 | E176: Legnica | F176: 90865274 | G176: 90310756 | H176: 0 | I176: 554518 | J176: 0 | K176: 139933601 | L176: 17219212
A177: 02 | B177: 64 | C177: 01 | D177: 1 | E177: Wrocław | F177: 604920384 | G177: 604920384 | H177: 0 | I177: 0 | J177: 0 | K177: 1608800468 | L177: 274142251
A178: 02 | B178: 65 | C178: 01 | D178: 1 | E178: Wałbrzych | F178: 127188816 | G178: 85790719 | H178: 39783664 | I178: 1614433 | J178: 0 | K178: 111663213 | L178: 13281049
A179: 04 | B179: 01 | C179: 01 | D179: 1 | E179: ALEKSANDRÓW KUJAWSKI | F179: 21167450 | G179: 13602146 | H179: 7480399 | I179: 84905 | J179: 0 | K179: 10225097 | L179: 1112671
A180: 04 | B180: 01 | C180: 02 | D180: 1 | E180: CIECHOCINEK | F180: 8888404 | G180: 7876529 | H180: 1003046 | I180: 8829 | J180: 0 | K180: 14254546 | L180: 992081
A181: 04 | B181: 01 | C181: 03 | D181: 1 | E181: NIESZAWA | F181: 2056101 | G181: 2056101 | H181: 0 | I181: 0 | J181: 0 | K181: 2913070 | L181: 21048
A182: 04 | B182: 01 | C182: 04 | D182: 2 | E182: ALEKSANDRÓW KUJAWSKI | F182: 23185346 | G182: 12080371 | H182: 10731629 | I182: 373346 | J182: 0 | K182: 10154389 | L182: 285233
A183: 04 | B183: 01 | C183: 05 | D183: 2 | E183: BĄDKOWO | F183: 8649131 | G183: 4959848 | H183: 3689283 | I183: 0 | J183: 0 | K183: 3149218 | L183: 33798
A184: 04 | B184: 01 | C184: 06 | D184: 2 | E184: KONECK | F184: 8275953 | G184: 5045959 | H184: 3229994 | I184: 0 | J184: 0 | K184: 2426406 | L184: 149425
A185: 04 | B185: 01 | C185: 07 | D185: 2 | E185: RACIĄŻEK | F185: 6887912 | G185: 3580408 | H185: 3307504 | I185: 0 | J185: 0 | K185: 2185408 | L185: 22365
A186: 04 | B186: 01 | C186: 08 | D186: 2 | E186: WAGANIEC | F186: 10221167 | G186: 6257847 | H186: 3955025 | I186: 8295 | J186: 0 | K186: 2692763 | L186: 82179
A187: 04 | B187: 01 | C187: 09 | D187: 2 | E187: ZAKRZEWO | F187: 8256948 | G187: 6028927 | H187: 2228021 | I187: 0 | J187: 0 | K187: 1955491 | L187: 135988
A188: 04 | B188: 02 | C188: 01 | D188: 1 | E188: BRODNICA | F188: 44261887 | G188: 41927548 | H188: 2255022 | I188: 79317 | J188: 0 | K188: 34516001 | L188: 5274061
A189: 04 | B189: 02 | C189: 02 | D189: 2 | E189: BOBROWO | F189: 18646352 | G189: 11077211 | H189: 7569141 | I189: 0 | J189: 0 | K189: 3294265 | L189: 69242
A190: 04 | B190: 02 | C190: 03 | D190: 2 | E190: BRODNICA | F190: 14672807 | G190: 9984820 | H190: 4687987 | I190: 0 | J190: 0 | K190: 11823992 | L190: 81470
A191: 04 | B191: 02 | C191: 04 | D191: 2 | E191: BRZOZIE | F191: 10710722 | G191: 6247242 | H191: 4463480 | I191: 0 | J191: 0 | K191: 2664634 | L191: 132640
A192: 04 | B192: 02 | C192: 05 | D192: 3 | E192: GÓRZNO | F192: 11402274 | G192: 7730782 | H192: 3671492 | I192: 0 | J192: 0 | K192: 2732827 | L192: 209705
A193: 04 | B193: 02 | C193: 06 | D193: 2 | E193: BARTNICZKA | F193: 9681057 | G193: 5303571 | H193: 4377486 | I193: 0 | J193: 0 | K193: 2964186 | L193: 542734
A194: 04 | B194: 02 | C194: 07 | D194: 3 | E194: JABŁONOWO POMORSKIE | F194: 21492485 | G194: 11404575 | H194: 9673704 | I194: 414206 | J194: 0 | K194: 5056279 | L194: 497648
A195: 04 | B195: 02 | C195: 08 | D195: 2 | E195: OSIEK | F195: 8196731 | G195: 4928956 | H195: 3267775 | I195: 0 | J195: 0 | K195: 2481836 | L195: 411339
A196: 04 | B196: 02 | C196: 09 | D196: 2 | E196: ŚWIEDZIEBNIA | F196: 12523930 | G196: 5988828 | H196: 6535102 | I196: 0 | J196: 0 | K196: 3981102 | L196: 21039
A197: 04 | B197: 02 | C197: 10 | D197: 2 | E197: ZBICZNO | F197: 11905520 | G197: 6628013 | H197: 5277507 | I197: 0 | J197: 0 | K197: 4053045 | L197: 37784
A198: 04 | B198: 03 | C198: 01 | D198: 2 | E198: BIAŁE BŁOTA | F198: 43641173 | G198: 43566371 | H198: 0 | I198: 74802 | J198: 0 | K198: 55545457 | L198: 5232704
A199: 04 | B199: 03 | C199: 02 | D199: 2 | E199: DĄBROWA CHEŁMIŃSKA | F199: 17827785 | G199: 11786034 | H199: 6041751 | I199: 0 | J199: 0 | K199: 9181640 | L199: 445966
A200: 04 | B200: 03 | C200: 03 | D200: 2 | E200: DOBRCZ | F200: 26516396 | G200: 20781598 | H200: 5734798 | I200: 0 | J200: 0 | K200: 15257138 | L200: 267556
A201: 04 | B201: 03 | C201: 04 | D201: 3 | E201: KORONOWO | F201: 45015488 | G201: 27228306 | H201: 16972603 | I201: 814579 | J201: 0 | K201: 22756146 | L201: 1072130
A202: 04 | B202: 03 | C202: 05 | D202: 2 | E202: NOWA WIEŚ WIELKA | F202: =G202+H202+I202 -> 16813664 | G202: 14737094 | H202: 2076570 | I202: 0 | J202: 0 | K202: 16236518 | L202: 2376430
A203: 04 | B203: 03 | C203: 06 | D203: 2 | E203: OSIELSKO | F203: 26400182 | G203: 26400182 | H203: 0 | I203: 0 | J203: 1750388 | K203: 61776809 | L203: 2021812
... 2283 more rows
